[Event "Live Chess"]
[Site "Chess.com"]
[Date "2023.05.20"]
[Round "-"]
[White "Delacorta"]
[Black "NatashaRegan"]
[Result "0-1"]
[WhiteElo "1393"]
[BlackElo "1890"]
[TimeControl "300"]
[EndTime "10:25:33 PDT"]
[Termination "NatashaRegan won by resignation"]

1. d4 {[%clk 0:04:57.3]} 1... Nf6 {[%clk 0:04:56.7]} 2. Nf3 {[%clk 0:04:55.6]}
2... e6 {[%clk 0:04:55.9]} 3. e3 {[%clk 0:04:53.8]} 3... b6 {[%clk 0:04:55]} 4.
Bd3 {[%clk 0:04:52.4]} 4... Bb7 {[%clk 0:04:54.1]} 5. b3 {[%clk 0:04:50.1]} 5...
c5 {[%clk 0:04:51.7]} 6. Bb2 {[%clk 0:04:48.2]} 6... Nc6 {[%clk 0:04:50]} 7.
Nbd2 {[%clk 0:04:37.7]} 7... Nb4 {[%clk 0:04:48.4]} 8. O-O {[%clk 0:04:29.8]}
8... Nxd3 {[%clk 0:04:46.4]} 9. cxd3 {[%clk 0:04:29.7]} 9... Be7 {[%clk
0:04:44]} 10. dxc5 {[%clk 0:04:25.2]} 10... bxc5 {[%clk 0:04:42.6]} 11. Rc1
{[%clk 0:04:15.3]} 11... O-O {[%clk 0:04:39.8]} 12. Nc4 {[%clk 0:04:00.5]} 12...
d5 {[%clk 0:04:35.5]} 13. Ncd2 {[%clk 0:03:48.3]} 13... Rc8 {[%clk 0:04:33.2]}
14. Re1 {[%clk 0:03:26]} 14... Qa5 {[%clk 0:04:26.7]} 15. a3 {[%clk 0:03:06.6]}
15... Rfd8 {[%clk 0:04:21.6]} 16. e4 {[%clk 0:02:46]} 16... dxe4 {[%clk
0:04:15.9]} 17. Ne5 {[%clk 0:02:33.6]} 17... exd3 {[%clk 0:04:08.9]} 18. Nec4
{[%clk 0:02:03.6]} 18... Qc7 {[%clk 0:04:05.3]} 19. Re3 {[%clk 0:01:35.3]} 19...
Rd5 {[%clk 0:03:46]} 20. Nf3 {[%clk 0:01:15.3]} 20... Rf5 {[%clk 0:03:41.2]} 21.
Nce5 {[%clk 0:01:00.7]} 21... Rd8 {[%clk 0:03:29.4]} 22. Rxd3 {[%clk 0:00:49.5]}
22... Nd5 {[%clk 0:03:15.3]} 23. Qc2 {[%clk 0:00:32.7]} 23... Nf4 {[%clk
0:03:02.5]} 24. Rc3 {[%clk 0:00:30.4]} 24... Rxe5 {[%clk 0:02:56.7]} 25. Rxc5
{[%clk 0:00:28.4]} 25... Rxc5 {[%clk 0:02:54.2]} 0-1

[Event "Live Chess"]
[Site "Chess.com"]
[Date "2023.05.20"]
[Round "-"]
[White "Reggie016"]
[Black "CheckThis4"]
[Result "0-1"]
[WhiteElo "1043"]
[BlackElo "2546"]
[TimeControl "300"]
[EndTime "10:25:35 PDT"]
[Termination "CheckThis4 won by resignation"]

1. e4 {[%clk 0:04:58.8]} 1... d5 {[%clk 0:04:58.6]} 2. exd5 {[%clk 0:04:57.5]}
2... Nf6 {[%clk 0:04:57.8]} 3. d4 {[%clk 0:04:56.4]} 3... Bg4 {[%clk 0:04:55.8]}
4. Bb5+ {[%clk 0:04:54.8]} 4... Nbd7 {[%clk 0:04:52.8]} 5. Be2 {[%clk
0:04:52.7]} 5... Bxe2 {[%clk 0:04:47.1]} 6. Nxe2 {[%clk 0:04:49.1]} 6... Nxd5
{[%clk 0:04:43]} 7. O-O {[%clk 0:04:46.3]} 7... e6 {[%clk 0:04:40.9]} 8. c4
{[%clk 0:04:42.7]} 8... N5f6 {[%clk 0:04:39.6]} 9. Nbc3 {[%clk 0:04:42]} 9...
Be7 {[%clk 0:04:29.8]} 10. Re1 {[%clk 0:04:40.1]} 10... O-O {[%clk 0:04:28.5]}
11. b4 {[%clk 0:04:34.9]} 11... Bxb4 {[%clk 0:04:25.6]} 12. a3 {[%clk
0:04:32.9]} 12... Be7 {[%clk 0:04:20.5]} 13. Ng3 {[%clk 0:04:30.4]} 13... Nb6
{[%clk 0:04:18.1]} 14. c5 {[%clk 0:04:17.9]} 14... Nbd5 {[%clk 0:04:14.4]} 15.
Nxd5 {[%clk 0:04:09.3]} 15... Nxd5 {[%clk 0:04:11.6]} 16. Qf3 {[%clk 0:03:57.7]}
16... Bf6 {[%clk 0:04:04.4]} 17. Bb2 {[%clk 0:03:48.1]} 17... b6 {[%clk
0:04:02.6]} 18. Ne4 {[%clk 0:03:45.9]} 18... Rb8 {[%clk 0:03:37.8]} 19. Nxf6+
{[%clk 0:03:26.4]} 19... Qxf6 {[%clk 0:03:34]} 20. cxb6 {[%clk 0:03:17.3]} 20...
Qxf3 {[%clk 0:03:29.8]} 21. gxf3 {[%clk 0:03:16.6]} 21... Rxb6 {[%clk
0:03:26.2]} 22. Rab1 {[%clk 0:03:12.7]} 22... Rfb8 {[%clk 0:03:24]} 23. Re2
{[%clk 0:03:06.5]} 23... Nc3 {[%clk 0:03:18.7]} 0-1

[Event "Live Chess"]
[Site "Chess.com"]
[Date "2023.05.20"]
[Round "-"]
[White "booktrunk"]
[Black "Bob2pen"]
[Result "1/2-1/2"]
[WhiteElo "1365"]
[BlackElo "1747"]
[TimeControl "300"]
[EndTime "10:25:39 PDT"]
[Termination "Game drawn by repetition"]

1. d4 {[%clk 0:04:57.3]} 1... Nf6 {[%clk 0:04:58.1]} 2. Nc3 {[%clk 0:04:55]}
2... d5 {[%clk 0:04:55.7]} 3. Bf4 {[%clk 0:04:49.4]} 3... e6 {[%clk 0:04:52.4]}
4. h4 {[%clk 0:04:46.4]} 4... Bd6 {[%clk 0:04:51]} 5. Qd2 {[%clk 0:04:41.6]}
5... Nc6 {[%clk 0:04:48.3]} 6. O-O-O {[%clk 0:04:35.2]} 6... O-O {[%clk
0:04:42.7]} 7. Bxd6 {[%clk 0:04:33.9]} 7... Qxd6 {[%clk 0:04:41.1]} 8. Nb5
{[%clk 0:04:28.7]} 8... Qe7 {[%clk 0:04:37.7]} 9. g3 {[%clk 0:04:20.9]} 9... a6
{[%clk 0:04:36.3]} 10. Nc3 {[%clk 0:04:19.1]} 10... b5 {[%clk 0:04:32.9]} 11.
Nf3 {[%clk 0:04:12.8]} 11... b4 {[%clk 0:04:29.8]} 12. Nb1 {[%clk 0:04:11.7]}
12... Ne4 {[%clk 0:04:27.7]} 13. Qe3 {[%clk 0:04:08.3]} 13... a5 {[%clk
0:04:23.1]} 14. Ng5 {[%clk 0:04:06.6]} 14... f5 {[%clk 0:04:17.2]} 15. Nxe4
{[%clk 0:04:04.6]} 15... fxe4 {[%clk 0:04:13.4]} 16. Bh3 {[%clk 0:03:59.8]}
16... Qf6 {[%clk 0:04:11.8]} 17. Rhf1 {[%clk 0:03:56.3]} 17... Ba6 {[%clk
0:04:06.8]} 18. Rde1 {[%clk 0:03:44.9]} 18... Ne7 {[%clk 0:04:05]} 19. f3 {[%clk
0:03:39.5]} 19... Nf5 {[%clk 0:04:00.7]} 20. Bxf5 {[%clk 0:03:37.7]} 20... exf5
{[%clk 0:03:58.8]} 21. Qg1 {[%clk 0:03:19.4]} 21... Qh6+ {[%clk 0:03:52.4]} 22.
Kd1 {[%clk 0:03:16]} 22... a4 {[%clk 0:03:44.5]} 23. Qh2 {[%clk 0:03:14.3]}
23... Qe3 {[%clk 0:03:41.2]} 24. Qf2 {[%clk 0:03:09.5]} 24... Qxf2 {[%clk
0:03:34.4]} 25. Rxf2 {[%clk 0:03:08.4]} 25... Rae8 {[%clk 0:03:31.9]} 26. fxe4
{[%clk 0:03:05.3]} 26... fxe4 {[%clk 0:03:27.4]} 27. Rxf8+ {[%clk 0:03:03.8]}
27... Rxf8 {[%clk 0:03:21.5]} 28. Nd2 {[%clk 0:03:01.6]} 28... Rf2 {[%clk
0:03:18.2]} 29. Nf1 {[%clk 0:02:59.8]} 29... Kf7 {[%clk 0:03:14.8]} 30. Kd2
{[%clk 0:02:58.1]} 30... Ke6 {[%clk 0:03:10.6]} 31. Ne3 {[%clk 0:02:56.7]} 31...
h6 {[%clk 0:03:03.1]} 32. g4 {[%clk 0:02:45.5]} 32... c6 {[%clk 0:02:58.2]} 33.
b3 {[%clk 0:02:37]} 33... a3 {[%clk 0:02:55.3]} 34. c4 {[%clk 0:02:34]} 34...
dxc4 {[%clk 0:02:50.1]} 35. Nxc4 {[%clk 0:02:31.3]} 35... Bxc4 {[%clk
0:02:48.5]} 36. bxc4 {[%clk 0:02:30.2]} 36... Rg2 {[%clk 0:02:46.4]} 37. g5
{[%clk 0:02:22.1]} 37... hxg5 {[%clk 0:02:45]} 38. hxg5 {[%clk 0:02:21.1]} 38...
Rxg5 {[%clk 0:02:43.7]} 39. Rh1 {[%clk 0:02:20.2]} 39... c5 {[%clk 0:02:41.9]}
40. dxc5 {[%clk 0:02:18.6]} 40... Rxc5 {[%clk 0:02:40.4]} 41. Rg1 {[%clk
0:02:15]} 41... Kf6 {[%clk 0:02:33.9]} 42. Rf1+ {[%clk 0:02:13.9]} 42... Ke5
{[%clk 0:02:32.7]} 43. Rg1 {[%clk 0:02:11.4]} 43... Rc7 {[%clk 0:02:29.9]} 44.
Ke3 {[%clk 0:02:09.6]} 44... Rxc4 {[%clk 0:02:27.2]} 45. Rxg7 {[%clk 0:02:07.8]}
45... Rc2 {[%clk 0:02:26.1]} 46. Re7+ {[%clk 0:02:04.5]} 46... Kd6 {[%clk
0:02:24.6]} 47. Rxe4 {[%clk 0:02:03.4]} 47... b3 {[%clk 0:02:22.7]} 48. axb3
{[%clk 0:02:01.7]} 48... a2 {[%clk 0:02:21.6]} 49. Ra4 {[%clk 0:02:00.2]} 49...
Rb2 {[%clk 0:02:19.7]} 50. b4 {[%clk 0:01:55.7]} 50... Kc6 {[%clk 0:02:14.5]}
51. Kd3 {[%clk 0:01:52.7]} 51... Kb5 {[%clk 0:02:13.5]} 52. Ra8 {[%clk
0:01:48.6]} 52... Kxb4 {[%clk 0:02:11.4]} 53. Rb8+ {[%clk 0:01:47.6]} 53... Ka3
{[%clk 0:02:10.4]} 54. Ra8+ {[%clk 0:01:46.6]} 54... Kb3 {[%clk 0:02:08.6]} 55.
Rb8+ {[%clk 0:01:45.9]} 55... Ka3 {[%clk 0:02:07.7]} 56. Ra8+ {[%clk 0:01:45.2]}
56... Kb3 {[%clk 0:02:06.9]} 57. Rb8+ {[%clk 0:01:44.8]} 57... Ka3 {[%clk
0:02:06]} 1/2-1/2

[Event "Live Chess"]
[Site "Chess.com"]
[Date "2023.05.20"]
[Round "-"]
[White "Ferrarifan27"]
[Black "Hacker_2009"]
[Result "1-0"]
[WhiteElo "2101"]
[BlackElo "1911"]
[TimeControl "300"]
[EndTime "10:25:42 PDT"]
[Termination "Ferrarifan27 won by resignation"]

1. e4 {[%clk 0:04:59.3]} 1... c5 {[%clk 0:04:57.6]} 2. Nf3 {[%clk 0:04:56.4]}
2... d6 {[%clk 0:04:56.4]} 3. d4 {[%clk 0:04:54.9]} 3... cxd4 {[%clk 0:04:56.3]}
4. Nxd4 {[%clk 0:04:54]} 4... Nf6 {[%clk 0:04:55.9]} 5. Nc3 {[%clk 0:04:52.6]}
5... a6 {[%clk 0:04:55.2]} 6. Bg5 {[%clk 0:04:47.7]} 6... e6 {[%clk 0:04:54.4]}
7. f4 {[%clk 0:04:46]} 7... Be7 {[%clk 0:04:53.8]} 8. Qf3 {[%clk 0:04:44.6]}
8... O-O {[%clk 0:04:52.9]} 9. O-O-O {[%clk 0:04:43.5]} 9... Nc6 {[%clk
0:04:52.4]} 10. g4 {[%clk 0:04:41.5]} 10... Qb6 {[%clk 0:04:48.5]} 11. Nb3
{[%clk 0:04:37.2]} 11... e5 {[%clk 0:04:39.5]} 12. f5 {[%clk 0:04:33.5]} 12...
Nd4 {[%clk 0:04:30]} 13. Nxd4 {[%clk 0:04:30]} 13... exd4 {[%clk 0:04:29.9]} 14.
Bxf6 {[%clk 0:04:26.9]} 14... Bxf6 {[%clk 0:04:27.4]} 15. Nd5 {[%clk 0:04:25.9]}
15... Qd8 {[%clk 0:04:24.3]} 16. h4 {[%clk 0:04:19.1]} 16... Bxh4 {[%clk
0:04:18.2]} 17. Kb1 {[%clk 0:04:15.4]} 17... b5 {[%clk 0:04:13.9]} 18. Qh3
{[%clk 0:04:13.4]} 18... Bb7 {[%clk 0:04:07.6]} 19. Qxh4 {[%clk 0:04:11.9]}
19... Qxh4 {[%clk 0:04:06.9]} 20. Rxh4 {[%clk 0:04:11.6]} 20... Bxd5 {[%clk
0:04:05.1]} 21. exd5 {[%clk 0:04:11.5]} 21... Rfe8 {[%clk 0:04:03.7]} 22. Bd3
{[%clk 0:04:07.2]} 22... Re5 {[%clk 0:04:00.5]} 23. Rhh1 {[%clk 0:04:02.2]}
23... Rxd5 {[%clk 0:03:59.4]} 24. Rhe1 {[%clk 0:04:01]} 24... Re5 {[%clk
0:03:58.9]} 25. Re4 {[%clk 0:03:54.9]} 25... Rae8 {[%clk 0:03:55.3]} 26. Rxd4
{[%clk 0:03:52.3]} 26... d5 {[%clk 0:03:50.7]} 27. Bf1 {[%clk 0:03:47]} 27... f6
{[%clk 0:03:47]} 28. Bg2 {[%clk 0:03:45.7]} 28... Kf8 {[%clk 0:03:41.4]} 29.
Bxd5 {[%clk 0:03:42.7]} 29... Rd8 {[%clk 0:03:40.1]} 30. Kc1 {[%clk 0:03:40.3]}
30... Rd6 {[%clk 0:03:38.4]} 31. Bh1 {[%clk 0:03:34.3]} 31... Rxd4 {[%clk
0:03:37]} 32. Rxd4 {[%clk 0:03:32.4]} 32... Re1+ {[%clk 0:03:35.3]} 33. Rd1
{[%clk 0:03:31.5]} 33... Re3 {[%clk 0:03:34]} 34. Kd2 {[%clk 0:03:28.2]} 34...
Rg3 {[%clk 0:03:31]} 35. Ke2 {[%clk 0:03:22.7]} 35... Rxg4 {[%clk 0:03:27.1]}
36. Kf3 {[%clk 0:03:17.2]} 36... Rc4 {[%clk 0:03:22]} 37. c3 {[%clk 0:03:15.3]}
37... Rc5 {[%clk 0:03:20.2]} 38. Kf4 {[%clk 0:03:13]} 38... Rc4+ {[%clk
0:03:18.5]} 39. Rd4 {[%clk 0:03:11.6]} 39... Rxd4+ {[%clk 0:03:16]} 40. cxd4
{[%clk 0:03:10.5]} 40... a5 {[%clk 0:03:14.6]} 41. b4 {[%clk 0:02:55.6]} 41...
axb4 {[%clk 0:03:09.7]} 42. Bc6 {[%clk 0:02:55.2]} 42... b3 {[%clk 0:03:06.3]}
43. axb3 {[%clk 0:02:52.1]} 43... b4 {[%clk 0:03:06.2]} 44. Ke4 {[%clk
0:02:46.5]} 44... Ke7 {[%clk 0:03:04.5]} 45. Kd5 {[%clk 0:02:45.3]} 45... g6
{[%clk 0:03:01.3]} 46. fxg6 {[%clk 0:02:43.3]} 46... hxg6 {[%clk 0:02:59.7]} 47.
Kc5 {[%clk 0:02:42.9]} 47... f5 {[%clk 0:02:56.7]} 48. Kxb4 {[%clk 0:02:40.2]}
48... g5 {[%clk 0:02:56.3]} 49. Kc5 {[%clk 0:02:37.6]} 49... g4 {[%clk
0:02:55.4]} 50. d5 {[%clk 0:02:35.2]} 50... f4 {[%clk 0:02:53.7]} 51. d6+ {[%clk
0:02:34.1]} 51... Kd8 {[%clk 0:02:52.6]} 52. b4 {[%clk 0:02:31]} 52... f3 {[%clk
0:02:51.3]} 53. b5 {[%clk 0:02:28.8]} 53... f2 {[%clk 0:02:50.4]} 54. Bg2 {[%clk
0:02:27.3]} 1-0

[Event "Live Chess"]
[Site "Chess.com"]
[Date "2023.05.20"]
[Round "-"]
[White "Prijmak"]
[Black "Hussamalhaidar"]
[Result "1-0"]
[WhiteElo "996"]
[BlackElo "984"]
[TimeControl "300"]
[EndTime "10:25:45 PDT"]
[Termination "Prijmak won by resignation"]

1. e4 {[%clk 0:04:57.2]} 1... Nc6 {[%clk 0:04:56.5]} 2. d4 {[%clk 0:04:55]} 2...
e5 {[%clk 0:04:54.7]} 3. d5 {[%clk 0:04:53]} 3... Nce7 {[%clk 0:04:53.4]} 4. f4
{[%clk 0:04:47.3]} 4... exf4 {[%clk 0:04:47.9]} 5. Bxf4 {[%clk 0:04:45.1]} 5...
Nf6 {[%clk 0:04:43.4]} 6. Bd3 {[%clk 0:04:42.4]} 6... Ng6 {[%clk 0:04:39.4]} 7.
Be3 {[%clk 0:04:39.8]} 7... b6 {[%clk 0:04:34]} 8. Nf3 {[%clk 0:04:38.1]} 8...
Bc5 {[%clk 0:04:31.9]} 9. Bxc5 {[%clk 0:04:35.6]} 9... bxc5 {[%clk 0:04:30.3]}
10. O-O {[%clk 0:04:34]} 10... d6 {[%clk 0:04:19.7]} 11. Nc3 {[%clk 0:04:28.9]}
11... Bg4 {[%clk 0:04:15.1]} 12. h3 {[%clk 0:04:27.6]} 12... Bd7 {[%clk
0:04:03.5]} 13. Qe2 {[%clk 0:04:24.4]} 13... O-O {[%clk 0:04:00.7]} 14. Nh2
{[%clk 0:04:13.4]} 14... Re8 {[%clk 0:03:50.2]} 15. Qf2 {[%clk 0:04:04.7]} 15...
Ne5 {[%clk 0:03:40.6]} 16. b3 {[%clk 0:04:00.5]} 16... Nxd3 {[%clk 0:03:34.6]}
17. cxd3 {[%clk 0:03:58.8]} 17... Bb5 {[%clk 0:03:28.6]} 18. a4 {[%clk
0:03:53.2]} 18... Bxd3 {[%clk 0:03:24.6]} 19. Rfe1 {[%clk 0:03:44.7]} 19... Bxe4
{[%clk 0:03:18.1]} 20. Nxe4 {[%clk 0:03:42.2]} 20... Nxe4 {[%clk 0:03:14.7]} 21.
Qf3 {[%clk 0:03:38.8]} 21... Nd2 {[%clk 0:03:06.7]} 22. Qf2 {[%clk 0:03:34.2]}
22... Rxe1+ {[%clk 0:03:02.3]} 23. Rxe1 {[%clk 0:03:31]} 23... Nxb3 {[%clk
0:02:59.5]} 24. Rf1 {[%clk 0:03:29]} 24... Qf6 {[%clk 0:02:46.5]} 25. Qxf6
{[%clk 0:03:24.7]} 25... gxf6 {[%clk 0:02:44.7]} 26. Rxf6 {[%clk 0:03:23.8]}
26... Kg7 {[%clk 0:02:37.9]} 27. Ng4 {[%clk 0:03:21.7]} 27... h5 {[%clk
0:02:29.4]} 28. Rf3 {[%clk 0:03:13]} 28... hxg4 {[%clk 0:02:24.2]} 29. Rxb3
{[%clk 0:03:11.4]} 29... gxh3 {[%clk 0:02:19.6]} 30. gxh3 {[%clk 0:03:07.6]}
30... a5 {[%clk 0:02:00.4]} 31. Rb7 {[%clk 0:03:04.9]} 31... Rc8 {[%clk
0:01:50.8]} 32. Kf2 {[%clk 0:02:57.7]} 32... c6 {[%clk 0:01:45.4]} 33. dxc6
{[%clk 0:02:45.7]} 33... Rxc6 {[%clk 0:01:42.8]} 34. Ke3 {[%clk 0:02:34.5]}
34... d5 {[%clk 0:01:35.3]} 35. Rb5 {[%clk 0:02:25]} 35... d4+ {[%clk
0:01:24.5]} 36. Kd3 {[%clk 0:02:20.4]} 36... c4+ {[%clk 0:01:19.8]} 37. Kxd4
{[%clk 0:02:18.3]} 37... c3 {[%clk 0:01:18.9]} 38. Rb1 {[%clk 0:02:15.3]} 38...
c2 {[%clk 0:01:16.5]} 39. Rc1 {[%clk 0:02:13.6]} 39... f5 {[%clk 0:01:12]} 40.
Kd3 {[%clk 0:02:10]} 40... f4 {[%clk 0:01:10.6]} 41. Rxc2 {[%clk 0:02:07.2]}
41... Rxc2 {[%clk 0:01:04.2]} 42. Kxc2 {[%clk 0:02:06.2]} 42... Kg6 {[%clk
0:00:47.4]} 43. Kd2 {[%clk 0:02:03.4]} 43... Kg5 {[%clk 0:00:45.7]} 44. Ke2
{[%clk 0:02:02.1]} 44... Kh4 {[%clk 0:00:26.6]} 45. Kf3 {[%clk 0:01:59.3]} 45...
Kxh3 {[%clk 0:00:22.4]} 46. Kxf4 {[%clk 0:01:58.3]} 46... Kg2 {[%clk 0:00:21.3]}
47. Ke4 {[%clk 0:01:57.3]} 47... Kf2 {[%clk 0:00:20]} 48. Kd4 {[%clk 0:01:56.5]}
48... Ke2 {[%clk 0:00:19]} 49. Kc4 {[%clk 0:01:55.6]} 49... Kd2 {[%clk
0:00:18.2]} 50. Kb5 {[%clk 0:01:54.6]} 50... Kc3 {[%clk 0:00:16.8]} 51. Kxa5
{[%clk 0:01:53.7]} 51... Kc4 {[%clk 0:00:14.5]} 52. Kb6 {[%clk 0:01:52]} 52...
Kb4 {[%clk 0:00:12.7]} 53. a5 {[%clk 0:01:51.1]} 53... Ka4 {[%clk 0:00:11.6]}
54. a6 {[%clk 0:01:50.1]} 54... Kb4 {[%clk 0:00:09.3]} 55. a7 {[%clk 0:01:49]}
55... Ka4 {[%clk 0:00:08.2]} 56. a8=Q+ {[%clk 0:01:47.6]} 56... Kb4 {[%clk
0:00:07.3]} 57. Qe4+ {[%clk 0:01:45.3]} 1-0

[Event "Live Chess"]
[Site "Chess.com"]
[Date "2023.05.20"]
[Round "-"]
[White "daniel9395"]
[Black "ickabod1100"]
[Result "0-1"]
[WhiteElo "561"]
[BlackElo "933"]
[TimeControl "300"]
[EndTime "10:25:49 PDT"]
[Termination "ickabod1100 won on time"]

1. d4 {[%clk 0:04:56.5]} 1... d5 {[%clk 0:04:58.2]} 2. Nf3 {[%clk 0:04:54]} 2...
Nc6 {[%clk 0:04:57.1]} 3. c3 {[%clk 0:04:47]} 3... Nf6 {[%clk 0:04:55.4]} 4.
Nbd2 {[%clk 0:04:35.4]} 4... Qd6 {[%clk 0:04:52.3]} 5. e4 {[%clk 0:04:34.2]}
5... dxe4 {[%clk 0:04:49.7]} 6. Ne5 {[%clk 0:04:09]} 6... Nxe5 {[%clk
0:04:29.9]} 7. dxe5 {[%clk 0:04:06.9]} 7... Qxe5 {[%clk 0:04:28.7]} 8. Nc4
{[%clk 0:03:58]} 8... Qd5 {[%clk 0:04:26]} 9. Qa4+ {[%clk 0:03:46.7]} 9... c6
{[%clk 0:04:23.4]} 10. Nb6 {[%clk 0:03:34.2]} 10... Qb5 {[%clk 0:04:13.7]} 11.
Qxb5 {[%clk 0:03:29.8]} 11... cxb5 {[%clk 0:04:12.3]} 12. Nxa8 {[%clk
0:03:29.3]} 12... e5 {[%clk 0:04:06.3]} 13. Bxb5+ {[%clk 0:03:25.3]} 13... Kd8
{[%clk 0:04:04.2]} 14. Be3 {[%clk 0:03:17.8]} 14... Bd7 {[%clk 0:04:02.8]} 15.
a4 {[%clk 0:03:05.7]} 15... Nd5 {[%clk 0:03:56]} 16. Bxa7 {[%clk 0:02:54.6]}
16... e3 {[%clk 0:03:51.3]} 17. fxe3 {[%clk 0:02:50.8]} 17... Bxb5 {[%clk
0:03:48.5]} 18. axb5 {[%clk 0:02:49.1]} 18... Bd6 {[%clk 0:03:45.6]} 19. e4
{[%clk 0:02:32.3]} 19... Nf4 {[%clk 0:03:40.6]} 20. O-O {[%clk 0:02:26.6]} 20...
Nd3 {[%clk 0:03:37.9]} 21. Nb6 {[%clk 0:02:02.3]} 21... Kc7 {[%clk 0:03:33.4]}
22. Nd5+ {[%clk 0:01:49.4]} 22... Kd7 {[%clk 0:03:29.8]} 23. b6 {[%clk
0:01:48.1]} 23... Nc5 {[%clk 0:03:26.2]} 24. Rxf7+ {[%clk 0:01:41.6]} 24... Ke6
{[%clk 0:03:22.7]} 25. Rxg7 {[%clk 0:01:13]} 25... Nxe4 {[%clk 0:03:17.5]} 26.
Rxb7 {[%clk 0:01:00.6]} 26... Kxd5 {[%clk 0:03:15.2]} 27. Rf7 {[%clk 0:00:48.2]}
27... Bc5+ {[%clk 0:03:12.6]} 28. Kf1 {[%clk 0:00:43.2]} 28... Nd2+ {[%clk
0:03:08.8]} 29. Ke2 {[%clk 0:00:26.9]} 29... Nb3 {[%clk 0:03:02.4]} 30. Rd1+
{[%clk 0:00:20.6]} 30... Kc4 {[%clk 0:02:59.7]} 31. Rf3 {[%clk 0:00:14.8]} 31...
Re8 {[%clk 0:02:56.3]} 32. Rd4+ {[%clk 0:00:07.1]} 32... Nxd4+ {[%clk
0:02:53.8]} 33. cxd4 {[%clk 0:00:06.1]} 33... exd4+ {[%clk 0:02:52.3]} 34. Kd2
{[%clk 0:00:03.1]} 34... Rg8 {[%clk 0:02:41]} 35. b7 {[%clk 0:00:02.6]} 35...
Bxa7 {[%clk 0:02:37.3]} 36. b8=Q {[%clk 0:00:01.5]} 36... Bxb8 {[%clk
0:02:35.9]} 0-1

[Event "Live Chess"]
[Site "Chess.com"]
[Date "2023.05.20"]
[Round "-"]
[White "profpirate4"]
[Black "TDCMF"]
[Result "1-0"]
[WhiteElo "1018"]
[BlackElo "340"]
[TimeControl "300"]
[EndTime "10:26:01 PDT"]
[Termination "profpirate4 won by checkmate"]

1. d4 {[%clk 0:04:56.8]} 1... d5 {[%clk 0:04:56.8]} 2. c4 {[%clk 0:04:56]} 2...
e5 {[%clk 0:04:54]} 3. dxe5 {[%clk 0:04:53.2]} 3... d4 {[%clk 0:04:51.8]} 4. Nf3
{[%clk 0:04:52.3]} 4... Nc6 {[%clk 0:04:48.6]} 5. Nbd2 {[%clk 0:04:51.2]} 5...
Nf6 {[%clk 0:04:30]} 6. exf6 {[%clk 0:04:48.3]} 6... Qxf6 {[%clk 0:04:24.2]} 7.
Nb3 {[%clk 0:04:44.7]} 7... Bc5 {[%clk 0:04:17.3]} 8. Nxc5 {[%clk 0:04:41.1]}
8... Qf5 {[%clk 0:04:10.8]} 9. Nb3 {[%clk 0:04:26.5]} 9... Nb4 {[%clk
0:04:04.1]} 10. Nfxd4 {[%clk 0:04:19.8]} 10... Qe4 {[%clk 0:03:53.1]} 11. e3
{[%clk 0:04:08.2]} 11... c5 {[%clk 0:03:50.1]} 12. Nxc5 {[%clk 0:03:47.8]} 12...
Qg6 {[%clk 0:03:30.5]} 13. Qa4+ {[%clk 0:03:44.3]} 13... Bd7 {[%clk 0:03:28.6]}
14. Qxb4 {[%clk 0:03:43.1]} 14... Bf5 {[%clk 0:03:26.3]} 15. Nxf5 {[%clk
0:03:34.5]} 15... Qxf5 {[%clk 0:03:25.1]} 16. Qb5+ {[%clk 0:03:29.6]} 16... Ke7
{[%clk 0:03:18.8]} 17. Bd3 {[%clk 0:03:22.9]} 17... Qf6 {[%clk 0:03:11.9]} 18.
Qxb7+ {[%clk 0:03:11.3]} 18... Kd6 {[%clk 0:03:04.3]} 19. Ne4+ {[%clk
0:03:08.2]} 19... Ke6 {[%clk 0:03:00.7]} 20. Nxf6 {[%clk 0:03:07.1]} 20... Kxf6
{[%clk 0:03:00.4]} 21. Qe4 {[%clk 0:03:05.2]} 21... Rhe8 {[%clk 0:02:58.2]} 22.
Qf5+ {[%clk 0:03:04.1]} 22... Ke7 {[%clk 0:02:57]} 23. b3 {[%clk 0:02:55.8]}
23... g6 {[%clk 0:02:51]} 24. Ba3+ {[%clk 0:02:53.1]} 24... Kd8 {[%clk 0:02:44]}
25. Qd5+ {[%clk 0:02:49]} 25... Kc8 {[%clk 0:02:40.9]} 26. Qc6+ {[%clk
0:02:46.6]} 26... Kd8 {[%clk 0:02:38.7]} 27. Rd1 {[%clk 0:02:40.6]} 27... Rc8
{[%clk 0:02:37]} 28. Bxg6# {[%clk 0:02:37.9]} 1-0

[Event "Live Chess"]
[Site "Chess.com"]
[Date "2023.05.20"]
[Round "-"]
[White "Daniel_Gliddon_FA"]
[Black "HD_IN4k"]
[Result "1-0"]
[WhiteElo "1179"]
[BlackElo "325"]
[TimeControl "300"]
[EndTime "10:26:04 PDT"]
[Termination "Daniel_Gliddon_FA won by checkmate"]

1. e4 {[%clk 0:04:53.6]} 1... g6 {[%clk 0:04:58.2]} 2. d4 {[%clk 0:04:51.6]}
2... Bg7 {[%clk 0:04:57.8]} 3. Nf3 {[%clk 0:04:48.1]} 3... d6 {[%clk 0:04:57.1]}
4. Bc4 {[%clk 0:04:42.6]} 4... e5 {[%clk 0:04:55.4]} 5. dxe5 {[%clk 0:04:34.8]}
5... dxe5 {[%clk 0:04:52.9]} 6. Qxd8+ {[%clk 0:04:30]} 6... Kxd8 {[%clk
0:04:51.2]} 7. Nxe5 {[%clk 0:04:24.5]} 7... Bxe5 {[%clk 0:04:48.7]} 8. O-O
{[%clk 0:04:15.1]} 8... Nf6 {[%clk 0:04:46.7]} 9. f4 {[%clk 0:04:06.1]} 9... Bd6
{[%clk 0:04:38.1]} 10. e5 {[%clk 0:04:04.4]} 10... Bxe5 {[%clk 0:04:34.4]} 11.
fxe5 {[%clk 0:04:00.6]} 11... Ne4 {[%clk 0:04:33.8]} 12. Rxf7 {[%clk 0:03:54.3]}
12... Nd7 {[%clk 0:04:16.6]} 13. e6 {[%clk 0:03:50.6]} 13... Ng5 {[%clk
0:04:07.8]} 14. e7+ {[%clk 0:03:46.9]} 14... Ke8 {[%clk 0:04:04.2]} 15. Bxg5
{[%clk 0:03:38.1]} 15... Ne5 {[%clk 0:03:50.5]} 16. Rg7 {[%clk 0:03:20.4]} 16...
Nxc4 {[%clk 0:03:47.8]} 17. Nc3 {[%clk 0:03:13.2]} 17... Nxb2 {[%clk 0:03:08.7]}
18. Nd5 {[%clk 0:03:09.4]} 18... Be6 {[%clk 0:02:56.7]} 19. Nf6# {[%clk
0:03:06.3]} 1-0